[Event "*** SCC Grand Prix: Titled Tuesday Blitz"]
[Site "Chess.com"]
[Date "2020.10.13"]
[Round "1"]
[White "elcandado"]
[Black "SergeyShtyka"]
[Result "1-0"]
[WhiteElo "2570"]
[BlackElo "2230"]
[TimeControl "180+1"]
[EndTime "10:08:56 PDT"]
[Termination "elcandado won on time"]

1. d4 {[%clk 0:02:59.9]} 1... c5 {[%clk 0:02:58.6]} 2. c3 {[%clk 0:02:58.5]}
2... e6 {[%clk 0:02:57.2]} 3. Nf3 {[%clk 0:02:56.1]} 3... Nf6 {[%clk 0:02:56.9]}
4. Bf4 {[%clk 0:02:56.4]} 4... Be7 {[%clk 0:02:52.2]} 5. e3 {[%clk 0:02:56.7]}
5... O-O {[%clk 0:02:52.2]} 6. Nbd2 {[%clk 0:02:56.9]} 6... Nc6 {[%clk
0:02:52.1]} 7. h3 {[%clk 0:02:53.6]} 7... d6 {[%clk 0:02:51.9]} 8. Bh2 {[%clk
0:02:49.5]} 8... a6 {[%clk 0:02:40.1]} 9. a4 {[%clk 0:02:39.8]} 9... b6 {[%clk
0:02:38.5]} 10. Bd3 {[%clk 0:02:39.1]} 10... Bb7 {[%clk 0:02:38]} 11. Qe2 {[%clk
0:02:39.2]} 11... Re8 {[%clk 0:02:34.6]} 12. O-O {[%clk 0:02:39.3]} 12... Bf8
{[%clk 0:02:34.4]} 13. Rfd1 {[%clk 0:02:37.9]} 13... Ne7 {[%clk 0:02:18]} 14. e4
{[%clk 0:02:34.9]} 14... Ng6 {[%clk 0:02:14.9]} 15. Qe3 {[%clk 0:01:52.3]} 15...
Qc7 {[%clk 0:02:11.6]} 16. Ng5 {[%clk 0:01:18.7]} 16... Rad8 {[%clk 0:02:05.2]}
17. Nf1 {[%clk 0:01:14.1]} 17... c4 {[%clk 0:01:28.4]} 18. Bc2 {[%clk
0:01:12.9]} 18... b5 {[%clk 0:01:28.8]} 19. Re1 {[%clk 0:00:55.3]} 19... e5
{[%clk 0:01:20.8]} 20. d5 {[%clk 0:00:50.9]} 20... Ra8 {[%clk 0:01:09.4]} 21.
Ng3 {[%clk 0:00:48]} 21... Nf4 {[%clk 0:01:03.3]} 22. Nf5 {[%clk 0:00:46.6]}
22... g6 {[%clk 0:01:02.8]} 23. Bxf4 {[%clk 0:00:31.9]} 23... exf4 {[%clk
0:01:00.8]} 24. Qd4 {[%clk 0:00:21]} 24... Re5 {[%clk 0:00:48.5]} 25. g3 {[%clk
0:00:15.8]} 25... fxg3 {[%clk 0:00:42.9]} 26. f4 {[%clk 0:00:15.6]} 26... gxf5
{[%clk 0:00:40.7]} 27. fxe5 {[%clk 0:00:15.3]} 27... dxe5 {[%clk 0:00:41.3]} 28.
Qd1 {[%clk 0:00:13.4]} 28... f4 {[%clk 0:00:36.9]} 29. h4 {[%clk 0:00:12.2]}
29... Qd7 {[%clk 0:00:32.1]} 30. Kg2 {[%clk 0:00:11.6]} 30... h6 {[%clk
0:00:29.9]} 31. Nf3 {[%clk 0:00:12]} 31... Bd6 {[%clk 0:00:28.4]} 32. Rh1 {[%clk
0:00:12]} 32... Kh7 {[%clk 0:00:24.8]} 33. axb5 {[%clk 0:00:12.4]} 33... axb5
{[%clk 0:00:24.5]} 34. Rxa8 {[%clk 0:00:12.9]} 34... Bxa8 {[%clk 0:00:25.4]} 35.
Qa1 {[%clk 0:00:12.9]} 35... Bb7 {[%clk 0:00:24.5]} 36. Qa7 {[%clk 0:00:11.3]}
36... Qe7 {[%clk 0:00:24.1]} 37. b4 {[%clk 0:00:07.4]} 37... Ng4 {[%clk
0:00:23.2]} 38. Bb1 {[%clk 0:00:06]} 38... Ne3+ {[%clk 0:00:23.2]} 39. Kg1
{[%clk 0:00:06.4]} 39... Nd1 {[%clk 0:00:16.9]} 40. Qa3 {[%clk 0:00:04.3]} 40...
Ne3 {[%clk 0:00:16.3]} 41. Qa7 {[%clk 0:00:03.3]} 41... Qc7 {[%clk 0:00:16.5]}
42. Rh3 {[%clk 0:00:01.4]} 42... Nd1 {[%clk 0:00:14.6]} 43. Kg2 {[%clk
0:00:01.2]} 43... Nxc3 {[%clk 0:00:13.9]} 44. Bc2 {[%clk 0:00:02.1]} 44... Kg7
{[%clk 0:00:11.8]} 45. h5 {[%clk 0:00:02.4]} 45... Kh7 {[%clk 0:00:11.7]} 46.
Nh4 {[%clk 0:00:03.3]} 46... Be7 {[%clk 0:00:09.8]} 47. Nf5 {[%clk 0:00:03]}
47... Bf6 {[%clk 0:00:10.3]} 48. Rh1 {[%clk 0:00:02.9]} 48... Ne2 {[%clk
0:00:09.2]} 49. Ra1 {[%clk 0:00:03.8]} 49... Nd4 {[%clk 0:00:08.7]} 50. Qa5
{[%clk 0:00:02.9]} 50... Qd7 {[%clk 0:00:07.6]} 51. Nxd4 {[%clk 0:00:02.3]}
51... exd4 {[%clk 0:00:07.7]} 52. e5+ {[%clk 0:00:03.2]} 52... Kg7 {[%clk
0:00:07.1]} 53. exf6+ {[%clk 0:00:03.4]} 53... Kxf6 {[%clk 0:00:08]} 54. Qb6+
{[%clk 0:00:03.8]} 54... Kg7 {[%clk 0:00:08.4]} 55. Qxd4+ {[%clk 0:00:04.2]}
55... f6 {[%clk 0:00:07.5]} 56. Rd1 {[%clk 0:00:04.5]} 56... Qg4 {[%clk
0:00:06.6]} 57. Qe4 {[%clk 0:00:04.2]} 57... c3 {[%clk 0:00:03.9]} 58. Qg6+
{[%clk 0:00:03.8]} 58... Qxg6 {[%clk 0:00:02.9]} 59. Bxg6 {[%clk 0:00:04.4]}
59... Bc8 {[%clk 0:00:03.5]} 60. Kf3 {[%clk 0:00:04.5]} 60... Bh3 {[%clk
0:00:02.7]} 61. Kxf4 {[%clk 0:00:04.1]} 61... f5 {[%clk 0:00:03.6]} 62. Bxf5
{[%clk 0:00:03.2]} 62... Bg4 {[%clk 0:00:04.5]} 63. Bxg4 {[%clk 0:00:02.7]}
63... Kf6 {[%clk 0:00:04.6]} 64. Kxg3 {[%clk 0:00:02.8]} 64... Ke7 {[%clk
0:00:05.5]} 65. Rc1 {[%clk 0:00:02.8]} 65... Kd6 {[%clk 0:00:06.4]} 66. Rxc3
{[%clk 0:00:03.5]} 66... Kxd5 {[%clk 0:00:06.4]} 67. Rf3 {[%clk 0:00:04.4]}
67... Kd6 {[%clk 0:00:07.1]} 68. Rf6+ {[%clk 0:00:04.5]} 68... Ke5 {[%clk
0:00:08]} 69. Rxh6 {[%clk 0:00:04.9]} 69... Kd4 {[%clk 0:00:08.3]} 70. Rb6
{[%clk 0:00:05.3]} 70... Kc4 {[%clk 0:00:09.2]} 71. Rxb5 {[%clk 0:00:05.7]}
71... Kxb5 {[%clk 0:00:08.4]} 72. h6 {[%clk 0:00:06.1]} 72... Kxb4 {[%clk
0:00:09.3]} 73. h7 {[%clk 0:00:06.6]} 73... Kc3 {[%clk 0:00:10.2]} 74. h8=Q+
{[%clk 0:00:06.9]} 1-0

[Event "*** SCC Grand Prix: Titled Tuesday Blitz"]
[Site "Chess.com"]
[Date "2020.10.13"]
[Round "1"]
[White "WildTricks"]
[Black "VerdeNotte"]
[Result "0-1"]
[WhiteElo "2437"]
[BlackElo "2836"]
[TimeControl "180+1"]
[EndTime "10:09:01 PDT"]
[Termination "VerdeNotte won by checkmate"]

1. Nf3 {[%clk 0:03:00.7]} 1... g6 {[%clk 0:02:59.7]} 2. e4 {[%clk 0:03:00.1]}
2... c5 {[%clk 0:02:59.4]} 3. d4 {[%clk 0:02:59.5]} 3... cxd4 {[%clk 0:02:59.7]}
4. Qxd4 {[%clk 0:03:00.4]} 4... Nf6 {[%clk 0:02:59.8]} 5. e5 {[%clk 0:03:00.2]}
5... Nc6 {[%clk 0:02:59.8]} 6. Qa4 {[%clk 0:03:00.7]} 6... Nd5 {[%clk
0:02:58.6]} 7. Qe4 {[%clk 0:03:01.1]} 7... Nc7 {[%clk 0:02:58.2]} 8. Nc3 {[%clk
0:03:00.6]} 8... d5 {[%clk 0:02:57.9]} 9. exd6 {[%clk 0:02:56.6]} 9... Ne6
{[%clk 0:02:50]} 10. dxe7 {[%clk 0:02:39.8]} 10... Qxe7 {[%clk 0:02:42.5]} 11.
Nd5 {[%clk 0:02:36.9]} 11... f5 {[%clk 0:02:37.2]} 12. Qe2 {[%clk 0:02:05.4]}
12... Qd8 {[%clk 0:02:34.1]} 13. c4 {[%clk 0:01:53.7]} 13... Bg7 {[%clk
0:02:29.7]} 14. Bg5 {[%clk 0:01:52.5]} 14... Qd6 {[%clk 0:02:16]} 15. Bf4 {[%clk
0:01:49.7]} 15... Qc5 {[%clk 0:02:06.7]} 16. Nc7+ {[%clk 0:01:48.2]} 16... Kf8
{[%clk 0:01:54.6]} 17. Qxe6 {[%clk 0:01:28.2]} 17... Qa5+ {[%clk 0:01:40]} 18.
Bd2 {[%clk 0:01:27]} 18... Qxc7 {[%clk 0:01:33.6]} 19. Qd5 {[%clk 0:01:08]}
19... Be6 {[%clk 0:01:24.9]} 20. Qc5+ {[%clk 0:00:53.7]} 20... Qe7 {[%clk
0:01:20.3]} 21. Qxe7+ {[%clk 0:00:52.2]} 21... Kxe7 {[%clk 0:01:21.2]} 22. O-O-O
{[%clk 0:00:51.4]} 22... h6 {[%clk 0:01:20.5]} 23. Bc3 {[%clk 0:00:39.7]} 23...
Bxc3 {[%clk 0:01:20.1]} 24. bxc3 {[%clk 0:00:40.6]} 24... Rac8 {[%clk
0:01:18.6]} 25. Nd4 {[%clk 0:00:29.7]} 25... Nxd4 {[%clk 0:01:18.4]} 26. Rxd4
{[%clk 0:00:30.6]} 26... Rhd8 {[%clk 0:01:16.3]} 27. Kd2 {[%clk 0:00:16.3]}
27... Bxc4 {[%clk 0:01:12.9]} 28. Bxc4 {[%clk 0:00:16]} 28... Rxd4+ {[%clk
0:01:11.2]} 29. cxd4 {[%clk 0:00:16.9]} 29... Rxc4 {[%clk 0:01:11.6]} 30. Kd3
{[%clk 0:00:17.4]} 30... Ra4 {[%clk 0:01:11.6]} 31. Re1+ {[%clk 0:00:17.7]}
31... Kd6 {[%clk 0:01:11.1]} 32. Re2 {[%clk 0:00:18.1]} 32... Kd5 {[%clk
0:01:10.4]} 33. Re5+ {[%clk 0:00:17.6]} 33... Kd6 {[%clk 0:01:10.4]} 34. Re2
{[%clk 0:00:18.5]} 34... b5 {[%clk 0:01:09.6]} 35. Kc3 {[%clk 0:00:17.4]} 35...
Rc4+ {[%clk 0:01:08.4]} 36. Kd3 {[%clk 0:00:16.4]} 36... a6 {[%clk 0:01:06.1]}
37. h4 {[%clk 0:00:15.2]} 37... Ra4 {[%clk 0:01:05.6]} 38. Kc3 {[%clk
0:00:13.3]} 38... f4 {[%clk 0:01:03.1]} 39. Kd3 {[%clk 0:00:12.1]} 39... Kd5
{[%clk 0:01:00.5]} 40. Re5+ {[%clk 0:00:12]} 40... Kd6 {[%clk 0:01:01]} 41. Re2
{[%clk 0:00:12.5]} 41... Rc4 {[%clk 0:00:51.3]} 42. Ke4 {[%clk 0:00:10.8]} 42...
a5 {[%clk 0:00:51.5]} 43. Rd2 {[%clk 0:00:10.3]} 43... b4 {[%clk 0:00:44.9]} 44.
Kxf4 {[%clk 0:00:05.8]} 44... Kd5 {[%clk 0:00:45.4]} 45. Ke3 {[%clk 0:00:06.3]}
45... Rc3+ {[%clk 0:00:44.9]} 46. Kf4 {[%clk 0:00:06.3]} 46... a4 {[%clk
0:00:43]} 47. g4 {[%clk 0:00:04.6]} 47... a3 {[%clk 0:00:38.2]} 48. h5 {[%clk
0:00:04.5]} 48... gxh5 {[%clk 0:00:32]} 49. gxh5 {[%clk 0:00:05.4]} 49... Rc4
{[%clk 0:00:31]} 50. Kf5 {[%clk 0:00:05.3]} 50... Rxd4 {[%clk 0:00:29.2]} 51.
Re2 {[%clk 0:00:05.6]} 51... Kc4 {[%clk 0:00:24.3]} 52. f4 {[%clk 0:00:04.3]}
52... Kc3 {[%clk 0:00:18.5]} 53. Kg6 {[%clk 0:00:03.2]} 53... Rd2 {[%clk
0:00:17.4]} 54. Re3+ {[%clk 0:00:02.6]} 54... Kd4 {[%clk 0:00:17.1]} 55. Rb3
{[%clk 0:00:01.4]} 55... Kc4 {[%clk 0:00:17]} 56. f5 {[%clk 0:00:01.8]} 56...
Rxa2 {[%clk 0:00:17]} 57. Rf3 {[%clk 0:00:02.7]} 57... b3 {[%clk 0:00:15.5]} 58.
f6 {[%clk 0:00:02.9]} 58... Rg2+ {[%clk 0:00:15.4]} 59. Kxh6 {[%clk 0:00:02.9]}
59... Rg8 {[%clk 0:00:07.3]} 60. f7 {[%clk 0:00:03.8]} 60... Ra8 {[%clk
0:00:06.9]} 61. Kg7 {[%clk 0:00:04.7]} 61... a2 {[%clk 0:00:06.6]} 62. Rf4+
{[%clk 0:00:05.1]} 62... Kd5 {[%clk 0:00:05.9]} 63. Rf5+ {[%clk 0:00:05.1]}
63... Ke4 {[%clk 0:00:05.9]} 64. Rf1 {[%clk 0:00:04.2]} 64... b2 {[%clk
0:00:05.3]} 65. Re1+ {[%clk 0:00:04.3]} 65... Kd3 {[%clk 0:00:05.5]} 66. Re8
{[%clk 0:00:04.5]} 66... a1=Q {[%clk 0:00:04.8]} 67. f8=Q {[%clk 0:00:03.4]}
67... b1=Q+ {[%clk 0:00:04.9]} 68. Kg6 {[%clk 0:00:03.8]} 68... Kd2+ {[%clk
0:00:04.7]} 69. Kg5 {[%clk 0:00:03.4]} 69... Qe5+ {[%clk 0:00:04]} 70. Rxe5
{[%clk 0:00:02.7]} 70... Rxf8 {[%clk 0:00:04.2]} 71. Rd5+ {[%clk 0:00:02.6]}
71... Ke3 {[%clk 0:00:04.7]} 72. Re5+ {[%clk 0:00:02.8]} 72... Kd4 {[%clk
0:00:05.2]} 73. Rd5+ {[%clk 0:00:02.5]} 73... Kxd5 {[%clk 0:00:05.2]} 74. Kh6
{[%clk 0:00:03.4]} 74... Qg1 {[%clk 0:00:05.1]} 75. Kh7 {[%clk 0:00:03.1]} 75...
Qg8+ {[%clk 0:00:05.3]} 76. Kh6 {[%clk 0:00:03]} 76... Rf6# {[%clk 0:00:06.2]}
0-1

[Event "*** SCC Grand Prix: Titled Tuesday Blitz"]
[Site "Chess.com"]
[Date "2020.10.13"]
[Round "1"]
[White "PotapovaM"]
[Black "MVM2008"]
[Result "1/2-1/2"]
[WhiteElo "2532"]
[BlackElo "2167"]
[TimeControl "180+1"]
[EndTime "10:09:11 PDT"]
[Termination "Game drawn by repetition"]

1. d4 {[%clk 0:03:00.9]} 1... Nf6 {[%clk 0:03:00.1]} 2. c4 {[%clk 0:03:01.5]}
2... g6 {[%clk 0:03:00.6]} 3. Nc3 {[%clk 0:03:02]} 3... Bg7 {[%clk 0:03:01.3]}
4. e4 {[%clk 0:03:02.1]} 4... d6 {[%clk 0:03:02]} 5. h3 {[%clk 0:03:02.6]} 5...
a6 {[%clk 0:02:57.6]} 6. Be3 {[%clk 0:03:00.4]} 6... Nbd7 {[%clk 0:02:55.9]} 7.
Nf3 {[%clk 0:02:57.3]} 7... c5 {[%clk 0:02:52.4]} 8. d5 {[%clk 0:02:56.1]} 8...
Qa5 {[%clk 0:02:37.3]} 9. Qd2 {[%clk 0:02:40.9]} 9... Rb8 {[%clk 0:02:06.9]} 10.
a4 {[%clk 0:02:22.4]} 10... O-O {[%clk 0:01:48.4]} 11. Bd3 {[%clk 0:02:22.2]}
11... b5 {[%clk 0:01:39.6]} 12. cxb5 {[%clk 0:02:14.1]} 12... axb5 {[%clk
0:01:39.4]} 13. Nxb5 {[%clk 0:02:12.6]} 13... Qxd2+ {[%clk 0:01:15.8]} 14. Nxd2
{[%clk 0:02:13.5]} 14... Ne5 {[%clk 0:01:14.7]} 15. Be2 {[%clk 0:02:11.6]} 15...
c4 {[%clk 0:01:01.8]} 16. O-O {[%clk 0:02:00.4]} 16... Bd7 {[%clk 0:00:51.9]}
17. f4 {[%clk 0:01:58.4]} 17... Nd3 {[%clk 0:00:49.1]} 18. Nxc4 {[%clk
0:01:58.8]} 18... Nb4 {[%clk 0:00:37.1]} 19. Bd2 {[%clk 0:01:44.2]} 19... Nc2
{[%clk 0:00:32.9]} 20. Rac1 {[%clk 0:01:43.5]} 20... Bxb5 {[%clk 0:00:33.2]} 21.
axb5 {[%clk 0:01:39.6]} 21... Nd4 {[%clk 0:00:33.5]} 22. Bd3 {[%clk 0:01:40.3]}
22... Rxb5 {[%clk 0:00:21.6]} 23. Nxd6 {[%clk 0:01:28.3]} 23... Rxb2 {[%clk
0:00:21.1]} 24. Nc4 {[%clk 0:01:26.5]} 24... Rb3 {[%clk 0:00:17.7]} 25. Bc3
{[%clk 0:01:23.3]} 25... Nxe4 {[%clk 0:00:17]} 26. Bxe4 {[%clk 0:00:18.3]} 26...
Rxc3 {[%clk 0:00:17.1]} 27. Rxc3 {[%clk 0:00:14.6]} 27... Ne2+ {[%clk
0:00:17.2]} 28. Kf2 {[%clk 0:00:14.1]} 28... Nxc3 {[%clk 0:00:17.8]} 29. Bf3
{[%clk 0:00:14.6]} 29... Rd8 {[%clk 0:00:15.7]} 30. Re1 {[%clk 0:00:07]} 30...
Kf8 {[%clk 0:00:09.4]} 31. Ne5 {[%clk 0:00:06.9]} 31... Nxd5 {[%clk 0:00:07.4]}
32. Nc6 {[%clk 0:00:06.8]} 32... Rd6 {[%clk 0:00:07.3]} 33. Bxd5 {[%clk
0:00:05.9]} 33... Rxd5 {[%clk 0:00:07.9]} 34. Nxe7 {[%clk 0:00:06]} 34... Rd2+
{[%clk 0:00:07.9]} 35. Kg3 {[%clk 0:00:06.3]} 35... Bf6 {[%clk 0:00:06.8]} 36.
Nc6 {[%clk 0:00:05.7]} 36... Kg7 {[%clk 0:00:06.8]} 37. Re3 {[%clk 0:00:04.6]}
37... Rc2 {[%clk 0:00:06.3]} 38. Ne5 {[%clk 0:00:04.6]} 38... Bxe5 {[%clk
0:00:05.7]} 39. Rxe5 {[%clk 0:00:05.1]} 39... Rc3+ {[%clk 0:00:06.1]} 40. Kh2
{[%clk 0:00:05]} 40... h5 {[%clk 0:00:06.2]} 41. Rd5 {[%clk 0:00:04.6]} 41...
Rc4 {[%clk 0:00:06.4]} 42. Kg3 {[%clk 0:00:04]} 42... Rc3+ {[%clk 0:00:05.8]}
43. Kf2 {[%clk 0:00:04.1]} 43... Rc2+ {[%clk 0:00:05.7]} 44. Kf3 {[%clk
0:00:04.6]} 44... Kf6 {[%clk 0:00:04.8]} 45. Rd6+ {[%clk 0:00:04.2]} 45... Kg7
{[%clk 0:00:04.9]} 46. Rd3 {[%clk 0:00:05.1]} 46... Rc1 {[%clk 0:00:04.9]} 47.
g4 {[%clk 0:00:05.1]} 47... hxg4+ {[%clk 0:00:04.9]} 48. hxg4 {[%clk 0:00:06]}
48... Rf1+ {[%clk 0:00:05.2]} 49. Kg3 {[%clk 0:00:06.4]} 49... Rg1+ {[%clk
0:00:05.6]} 50. Kf3 {[%clk 0:00:05.5]} 50... Rf1+ {[%clk 0:00:05.8]} 51. Ke4
{[%clk 0:00:05.7]} 51... Rg1 {[%clk 0:00:05.3]} 52. g5 {[%clk 0:00:05.7]} 52...
Re1+ {[%clk 0:00:05.3]} 53. Kf3 {[%clk 0:00:05.2]} 53... Rf1+ {[%clk 0:00:05.4]}
54. Ke4 {[%clk 0:00:05.5]} 54... Re1+ {[%clk 0:00:05.7]} 55. Kd5 {[%clk
0:00:05.7]} 55... Rf1 {[%clk 0:00:05.6]} 56. Rd4 {[%clk 0:00:06.3]} 56... Ra1
{[%clk 0:00:05.3]} 57. Ke4 {[%clk 0:00:05.9]} 57... Re1+ {[%clk 0:00:05.2]} 58.
Kd5 {[%clk 0:00:05.8]} 58... Ra1 {[%clk 0:00:05.3]} 59. Kd6 {[%clk 0:00:05.9]}
59... Ra6+ {[%clk 0:00:05.1]} 60. Ke7 {[%clk 0:00:05.6]} 60... Ra7+ {[%clk
0:00:05.2]} 61. Kd6 {[%clk 0:00:04.9]} 61... Ra6+ {[%clk 0:00:05.1]} 62. Ke5
{[%clk 0:00:05.1]} 62... Re6+ {[%clk 0:00:05.1]} 63. Kd5 {[%clk 0:00:05.2]}
63... Re1 {[%clk 0:00:04.4]} 64. Re4 {[%clk 0:00:04.7]} 64... Rd1+ {[%clk
0:00:04.6]} 65. Ke5 {[%clk 0:00:04.6]} 65... Rd7 {[%clk 0:00:04.2]} 66. Rd4
{[%clk 0:00:04.8]} 66... Re7+ {[%clk 0:00:04.5]} 67. Kd6 {[%clk 0:00:05.2]}
67... Re1 {[%clk 0:00:04.4]} 68. Rb4 {[%clk 0:00:05.2]} 68... Rd1+ {[%clk
0:00:04.4]} 69. Ke5 {[%clk 0:00:05.4]} 69... Re1+ {[%clk 0:00:04.6]} 70. Kd5
{[%clk 0:00:05.6]} 70... Rd1+ {[%clk 0:00:04.9]} 71. Rd4 {[%clk 0:00:06.2]}
71... Ra1 {[%clk 0:00:05.1]} 1/2-1/2

[Event "*** SCC Grand Prix: Titled Tuesday Blitz"]
[Site "Chess.com"]
[Date "2020.10.13"]
[Round "1"]
[White "UmarovSabir"]
[Black "RobertoJBM"]
[Result "0-1"]
[WhiteElo "2373"]
[BlackElo "2722"]
[TimeControl "180+1"]
[EndTime "10:09:23 PDT"]
[Termination "RobertoJBM won by checkmate"]

1. e4 {[%clk 0:02:59.4]} 1... c6 {[%clk 0:02:59.8]} 2. d4 {[%clk 0:02:58.4]}
2... d5 {[%clk 0:03:00.7]} 3. Bd3 {[%clk 0:02:58.8]} 3... dxe4 {[%clk
0:03:00.5]} 4. Bxe4 {[%clk 0:02:58.6]} 4... Nf6 {[%clk 0:03:01.4]} 5. Bf3 {[%clk
0:02:58.5]} 5... Bf5 {[%clk 0:03:01]} 6. Ne2 {[%clk 0:02:58.2]} 6... e6 {[%clk
0:03:01.1]} 7. O-O {[%clk 0:02:57.4]} 7... Be7 {[%clk 0:02:57.1]} 8. h3 {[%clk
0:02:55.7]} 8... h6 {[%clk 0:02:55.5]} 9. Nd2 {[%clk 0:02:55.1]} 9... Nbd7
{[%clk 0:02:55]} 10. Nc4 {[%clk 0:02:54.7]} 10... O-O {[%clk 0:02:53.1]} 11. Bf4
{[%clk 0:02:51.9]} 11... Nb6 {[%clk 0:02:53]} 12. Ne5 {[%clk 0:02:50.7]} 12...
Nfd7 {[%clk 0:02:49.8]} 13. Ng3 {[%clk 0:02:35]} 13... Bh7 {[%clk 0:02:48.2]}
14. Ne4 {[%clk 0:02:29]} 14... Nd5 {[%clk 0:02:26.5]} 15. Bh2 {[%clk 0:02:09.9]}
15... N5f6 {[%clk 0:02:14.5]} 16. Re1 {[%clk 0:01:24.3]} 16... Nxe4 {[%clk
0:02:09.1]} 17. Bxe4 {[%clk 0:01:24.2]} 17... Bxe4 {[%clk 0:02:08.3]} 18. Rxe4
{[%clk 0:01:25.1]} 18... Nf6 {[%clk 0:02:08.6]} 19. Re2 {[%clk 0:01:17.9]} 19...
Qb6 {[%clk 0:02:08.4]} 20. c3 {[%clk 0:01:17.8]} 20... Rad8 {[%clk 0:02:07.6]}
21. Qb3 {[%clk 0:01:16.4]} 21... Rfe8 {[%clk 0:02:01.2]} 22. Rae1 {[%clk
0:01:15.6]} 22... Qxb3 {[%clk 0:01:58.3]} 23. axb3 {[%clk 0:01:15.4]} 23... Bd6
{[%clk 0:01:56.4]} 24. b4 {[%clk 0:01:13.8]} 24... Bxe5 {[%clk 0:01:55.2]} 25.
Bxe5 {[%clk 0:01:13.1]} 25... Nd5 {[%clk 0:01:54.8]} 26. Ra1 {[%clk 0:01:11.6]}
26... a6 {[%clk 0:01:54.8]} 27. g4 {[%clk 0:01:07.9]} 27... f6 {[%clk
0:01:53.8]} 28. Bg3 {[%clk 0:01:07.5]} 28... Kf7 {[%clk 0:01:54.4]} 29. Kg2
{[%clk 0:01:07.6]} 29... Rd7 {[%clk 0:01:50]} 30. Rae1 {[%clk 0:01:07.4]} 30...
Nb6 {[%clk 0:01:48.7]} 31. h4 {[%clk 0:01:06.6]} 31... Nc8 {[%clk 0:01:34.2]}
32. h5 {[%clk 0:01:06.5]} 32... Rde7 {[%clk 0:01:32.5]} 33. f3 {[%clk 0:01:03]}
33... f5 {[%clk 0:01:30.7]} 34. Be5 {[%clk 0:00:59]} 34... Rd7 {[%clk
0:01:17.5]} 35. Kg3 {[%clk 0:00:58.3]} 35... Ne7 {[%clk 0:01:12.6]} 36. Rg1
{[%clk 0:00:43.3]} 36... Nd5 {[%clk 0:01:11.7]} 37. Reg2 {[%clk 0:00:40.3]}
37... fxg4 {[%clk 0:01:05.2]} 38. fxg4 {[%clk 0:00:34.1]} 38... Kg8 {[%clk
0:01:05.2]} 39. Rf1 {[%clk 0:00:34.1]} 39... Ne3 {[%clk 0:00:58.5]} 40. Re1
{[%clk 0:00:23.7]} 40... Nxg2 {[%clk 0:00:58.4]} 41. Kxg2 {[%clk 0:00:24.6]}
41... Rf7 {[%clk 0:00:55.8]} 42. Bg3 {[%clk 0:00:24.1]} 42... Kf8 {[%clk
0:00:54.6]} 43. Re2 {[%clk 0:00:23.9]} 43... Ke7 {[%clk 0:00:54.5]} 44. Re1
{[%clk 0:00:24.1]} 44... Kd7 {[%clk 0:00:54.7]} 45. Re2 {[%clk 0:00:24.5]} 45...
Ref8 {[%clk 0:00:55.1]} 46. Re1 {[%clk 0:00:24.7]} 46... Rf3 {[%clk 0:00:50.7]}
47. Kh2 {[%clk 0:00:18.1]} 47... Rd3 {[%clk 0:00:48.2]} 48. Re2 {[%clk
0:00:17.2]} 48... Rff3 {[%clk 0:00:46.8]} 49. Be5 {[%clk 0:00:16.7]} 49... Rf7
{[%clk 0:00:45.2]} 50. Kg2 {[%clk 0:00:15.6]} 50... Rd1 {[%clk 0:00:38.5]} 51.
Rc2 {[%clk 0:00:15.5]} 51... Re1 {[%clk 0:00:36.8]} 52. Rd2 {[%clk 0:00:15.5]}
52... Re4 {[%clk 0:00:36.8]} 53. Kg3 {[%clk 0:00:15.5]} 53... Re3+ {[%clk
0:00:36.4]} 54. Kg2 {[%clk 0:00:15.7]} 54... Ke7 {[%clk 0:00:37.1]} 55. Rc2
{[%clk 0:00:14.5]} 55... Kf8 {[%clk 0:00:37.4]} 56. Rd2 {[%clk 0:00:14.5]} 56...
Kg8 {[%clk 0:00:37.9]} 57. Rc2 {[%clk 0:00:14.4]} 57... Re4 {[%clk 0:00:37.1]}
58. Kg3 {[%clk 0:00:14]} 58... Rf1 {[%clk 0:00:37.2]} 59. Rg2 {[%clk 0:00:13.2]}
59... Re3+ {[%clk 0:00:35.2]} 60. Kh2 {[%clk 0:00:12]} 60... Ref3 {[%clk
0:00:36.1]} 61. Bg3 {[%clk 0:00:10.9]} 61... Rb1 {[%clk 0:00:35.7]} 62. Re2
{[%clk 0:00:10.4]} 62... Kf7 {[%clk 0:00:35.7]} 63. Kg2 {[%clk 0:00:10.8]} 63...
Rff1 {[%clk 0:00:35]} 64. Be5 {[%clk 0:00:10.5]} 64... Rbe1 {[%clk 0:00:32.3]}
65. Rd2 {[%clk 0:00:07.8]} 65... Rg1+ {[%clk 0:00:31.9]} 66. Kh2 {[%clk
0:00:07.7]} 66... Ref1 {[%clk 0:00:30.4]} 67. Kh3 {[%clk 0:00:06.7]} 67... Rf3+
{[%clk 0:00:28.7]} 68. Kh4 {[%clk 0:00:06.6]} 68... Rh1+ {[%clk 0:00:27.1]} 69.
Bh2 {[%clk 0:00:07]} 69... Ke7 {[%clk 0:00:23.6]} 70. Re2 {[%clk 0:00:07]} 70...
Kd7 {[%clk 0:00:23.7]} 71. g5 {[%clk 0:00:07.2]} 71... hxg5+ {[%clk 0:00:20.7]}
72. Kxg5 {[%clk 0:00:07]} 72... Rf6 {[%clk 0:00:18.4]} 73. Be5 {[%clk
0:00:06.5]} 73... Rf5+ {[%clk 0:00:18.5]} 74. Kg6 {[%clk 0:00:06.8]} 74... Rhxh5
{[%clk 0:00:19.4]} 75. Kxg7 {[%clk 0:00:07]} 75... Rhg5+ {[%clk 0:00:19.8]} 76.
Kh6 {[%clk 0:00:06.9]} 76... Rg1 {[%clk 0:00:20.5]} 77. Rh2 {[%clk 0:00:06.7]}
77... Rf7 {[%clk 0:00:20]} 78. Rh3 {[%clk 0:00:04.8]} 78... Rg2 {[%clk
0:00:19.7]} 79. b3 {[%clk 0:00:04.6]} 79... Rb2 {[%clk 0:00:19.1]} 80. Kg6
{[%clk 0:00:03.9]} 80... Re7 {[%clk 0:00:17.9]} 81. Bf6 {[%clk 0:00:04.4]} 81...
Rg2+ {[%clk 0:00:17.4]} 82. Kh5 {[%clk 0:00:03.4]} 82... Rh7# {[%clk 0:00:16.6]}
0-1